fUSD/lending_fUSD_20240505
["ID","MTS","AMOUNT","RATE_DAILY","PERIOD"]
[325427462,1714867831967,-155.0,0.00011771,2]
[325427463,1714867831977,-155.0,0.00011772,2]
[325427464,1714867831987,-355.08469825,0.00011772,2]
[325427465,1714867832000,-1180.86607059,0.00011772,2]
[325427466,1714867832012,-495.8025,0.00011772,2]
[325427467,1714867832028,-1023.76536891,0.00011772,2]
[325427468,1714867832038,-1997.08236472,0.00011773,2]
[325427469,1714867832047,-210.33298828,0.00011788,2]
[325427470,1714867832057,-578.39460077,0.000118,2]
[325427471,1714867832066,-300.0,0.000124,4]
[325427472,1714867832077,-1000.0,0.0001248,2]
[325427473,1714867832086,-2433.88782357,0.0001248,2]
[325427474,1714867832099,-66.11217643,0.0001248,2]
[325427475,1714867832108,-700.0,0.000125,4]
[325427476,1714867832118,-3122.29675192,0.0001258,2]
[325427477,1714867832160,-5786.13705453,0.0001258,2]
[325427478,1714867832171,-15067.000015,0.0001258,2]
[325427479,1714867832183,-517.9614323,0.0001258,2]
[325427480,1714867832194,-803.1102161,0.0001258,2]
[325427481,1714867832206,-4318.56012524,0.0001258,2]
[325427482,1714867832217,-63249.0,0.0001258,2]
[325427483,1714867832247,-3913.38875614,0.0001258,2]
[325427484,1714867832259,-685.05424735,0.0001258,2]
[325427485,1714867832289,-68755.5967078,0.0001258,2]
[325427486,1714867832300,-576.32490571,0.0001258,2]
[325427487,1714867832312,-484.32,0.0001258,2]
[325427498,1714867837886,-2022.52795283,0.0001258,2]
[325427499,1714867837898,-372.33325024,0.0001258,2]
[325427500,1714867837910,-1325.81220542,0.0001258,2]
[325427501,1714867837921,-2022.6949102,0.0001258,2]
[325427502,1714867837932,-729.82228752,0.0001258,2]
[325427503,1714867838056,-6265.55003545,0.0001258,2]
[325427504,1714867838069,-1786.7040872,0.0001258,2]
[325427505,1714867838082,-7360.33139325,0.0001258,2]
[325427506,1714867838093,-491.44999998,0.0001258,2]
[325427507,1714867838104,-4058.37164456,0.0001258,2]
[325427508,1714867838115,-30017.80469447,0.0001258,2]
[325427509,1714867838160,-3471.76585,0.0001258,2]
[325427510,1714867838171,-858.60451901,0.0001258,2]
[325427511,1714867838183,-640.53,0.0001258,2]
[325427513,1714867838206,-50167.03092711,0.0001258,2]
[325427515,1714867838215,-1100.0,0.000126,4]
[325427516,1714867838224,-1500.0,0.000127,4]
[325427517,1714867838233,-1900.0,0.000128,4]
[325427518,1714867838240,-6411.21,0.000129,2]
[325427520,1714867838248,-300.0,0.000129,4]
[325427521,1714867838255,-458.32890079,0.000129,2]
[325427522,1714867838263,-227.47809229,0.00012999,2]
[325427523,1714867838270,-472.01455134,0.00013,2]
[325427524,1714867838280,-420.43666373,0.00013,2]
[325427525,1714867838290,-324.95664198,0.00013,2]
[325427526,1714867838357,-379.88735711,0.00013,2]
[325427528,1714867839918,-903.98746654,0.00013,2]
[325427529,1714867839931,-1556.83014032,0.00013,2]
[325427530,1714867841025,-909.9846862,0.00013,2]
[325427531,1714867841038,-186522.51795361,0.00013,2]
[325427532,1714867841050,-696.2,0.00013,2]
[325427533,1714867841062,-4896.92,0.00013,2]
[325427534,1714867841073,-922.8938064,0.00013,2]
[325427535,1714867841090,-371976.92,0.00013,2]
[325427536,1714867841180,-252.43701998,0.00013,2]
[325427537,1714867841193,-4991.98861654,0.00013,2]
[325427538,1714867841204,-1103.89179112,0.00013,2]
[325427539,1714867841250,-662.47809905,0.00013,2]
[325427540,1714867841262,-45955.9814627,0.00013,2]
[325427541,1714867841308,-659.94979241,0.00013,2]
[325427542,1714867841365,-7058.3,0.00013,2]
[325427576,1714867842945,-505.39136993,0.00013,2]
[325427583,1714867843002,-35333.77735331,0.00013,2]
[325427590,1714867843061,-646.38980015,0.00013,2]
[325427591,1714867843072,-791.9412262,0.00013,2]
[325427592,1714867843084,-23210.31069795,0.00013,2]
[325427594,1714867843101,-2778435.27896775,0.00013,2]
[325427595,1714867843129,-1104.6360013,0.00013,2]
[325427596,1714867843141,-880.029151,0.00013,2]
[325427597,1714867843179,-1883.65102,0.00013,2]
[325427598,1714867843191,-302.02885441,0.00013,2]
[325427599,1714867843203,-1838.75385252,0.00013,2]
[325427600,1714867843236,-315.315,0.00013,2]
[325427604,1714867845906,-155.0,0.00012999,2]
[325427605,1714867845917,-18405.266541,0.00013,2]
[325427606,1714867845964,-176445.19409591,0.00013,2]
[325427607,1714867845975,-6231.59735195,0.00013,2]
[325427608,1714867846023,-2161.07293942,0.00013,2]
[325427609,1714867846252,-626.08111507,0.00013,2]
[325427613,1714867846280,-1309.99765462,0.00013,2]
[325427615,1714867846292,-28264.79068205,0.00013,2]
[325427619,1714867846319,-14522.91221009,0.00013,2]
[325427719,1714869032161,-312.06068321,0.00012036,2]
[325427721,1714869032174,-187.93931679,0.00012036,2]
[325427723,1714869032183,-272.62007816,0.00012131,2]
[325427729,1714869032226,-136.29218544,0.00012131,2]
[325427730,1714869032237,-250.0,0.00012132,2]
[325427731,1714869032246,-155.0,0.0001218,2]
[325427732,1714869032255,-155.0,0.0001218,2]
[325427733,1714869032265,-155.0,0.0001218,2]
[325427734,1714869032275,-3278.54913251,0.0001218,2]
[325427735,1714869032284,-1689.23538539,0.00012181,2]
[325427736,1714869032297,-307.84697933,0.00012181,2]
[325427737,1714869032306,-360.08324178,0.00012182,2]
[325427738,1714869032315,-385.63545357,0.00012182,2]
[325427739,1714869032328,-430.67019728,0.00012182,2]
[325427740,1714869032350,-990.04107208,0.00012182,2]
[325427741,1714869032362,-338.70707334,0.00012182,2]
[325427751,1714869038105,-162.28427626,0.00012131,2]
[325427752,1714869038115,-1988.79404383,0.00012182,2]
[325427754,1714869038125,-279.64,0.00012183,2]
[325427756,1714869038135,-200.0,0.00012184,2]
[325427759,1714869038144,-200.0,0.00012256,2]
[325427760,1714869038154,-150.0,0.00012256,2]
[325427761,1714869038163,-15070.00754929,0.00012326,2]
[325427762,1714869038175,-8829.99245071,0.00012326,2]
[325427763,1714869038184,-1086.95,0.00012326,2]
[325427764,1714869038194,-196.25513631,0.000126,2]
[325427765,1714869038203,-150.0,0.0001267,2]
[325427766,1714869038213,-150.99,0.00012671,2]
[325427767,1714869038222,-176.81,0.00012767,2]
[325427768,1714869038231,-3498.38014246,0.00012812,2]
[325427769,1714869038240,-24727.21933052,0.00012867,2]
[325427770,1714869038333,-69000.5738671,0.00012867,2]
[325427771,1714869038342,-499.99,0.00012867,2]
[325427772,1714869038351,-251.74141407,0.00012868,2]
[325427773,1714869038361,-170.15468988,0.000129,2]
[325427774,1714869038370,-150.0,0.000129,2]
[325427775,1714869038380,-160.30085168,0.000129,2]
[325427776,1714869038389,-171.13294091,0.000129,2]
[325427777,1714869038399,-2500.0,0.000129,2]
[325427778,1714869038408,-168.68,0.0001299,2]
[325427779,1714869038418,-168.68,0.0001299,2]
[325427780,1714869038429,-168.68,0.0001299,2]
[325427782,1714869038439,-168.68,0.0001299,2]
[325427783,1714869038448,-168.68,0.0001299,2]
[325427785,1714869038458,-178.96827852,0.0001299,2]
[325427788,1714869038468,-178.96827852,0.0001299,2]
[325427789,1714869038477,-286.05032217,0.00012998,2]
[325427790,1714869038486,-3646.73165738,0.00012998,2]
[325427791,1714869038495,-1382.45973443,0.00012998,2]
[325427792,1714869038504,-409.33891891,0.00012998,2]
[325427793,1714869038514,-1103.17720537,0.00012998,2]
[325427794,1714869038522,-8831.53,0.00012998,2]
[325427795,1714869038531,-13087.08,0.00012998,2]
[325427796,1714869038540,-150.99,0.00012998,2]
[325427797,1714869038550,-246.75239032,0.00012999,2]
[325427798,1714869038559,-76492.67508046,0.00013,2]
[325427799,1714869038570,-62441.40000002,0.00013,2]
[325427800,1714869038581,-326.80200002,0.00013,2]
[325427801,1714869038593,-320.525,0.00013,2]
[325427803,1714869038608,-608.16,0.00013,2]
[325427806,1714869038627,-64133.19073846,0.00013,2]
[325427808,1714869038639,-6422.7,0.00013,2]
[325427817,1714869039260,-1298.10070513,0.00013,2]
[325427818,1714869039468,-1652197.9138876,0.00013,2]
[325427819,1714869039479,-158.67384185,0.00013,2]
[325427820,1714869039489,-727.52,0.00013151,2]
[325427821,1714869039499,-606.27,0.00013151,2]
[325427822,1714869039510,-505.23,0.00013151,2]
[325427823,1714869039520,-210.51,0.00013151,2]
[325427824,1714869039530,-175.43,0.00013151,2]
[325427825,1714869039540,-877.15,0.00013151,2]
[325427826,1714869039550,-347.3,0.00013298,2]
[325427827,1714869039560,-347.3,0.00013335,2]
[325427828,1714869039569,-347.3,0.00013371,2]
[325427829,1714869039578,-347.3,0.00013408,2]
[325427830,1714869039587,-544.76,0.00013425,2]
[325427831,1714869039597,-347.3,0.00013444,2]
[325427832,1714869039607,-347.3,0.00013481,2]
[325427833,1714869039616,-347.3,0.00013517,2]
[325427834,1714869039626,-188.17,0.00013522,2]
[325427835,1714869039635,-347.3,0.00013553,2]
[325427836,1714869039644,-347.3,0.0001359,2]
[325427837,1714869039654,-347.3,0.00013626,2]
[325427838,1714869039663,-347.3,0.00013663,2]
[325427839,1714869039675,-500.0,0.00013699,2]
[325427840,1714869039684,-347.3,0.00013699,2]
[325427841,1714869039694,-347.3,0.00013736,2]
[325427842,1714869039704,-347.3,0.00013772,2]
[325427843,1714869039714,-272.3,0.00013778,2]
[325427844,1714869039725,-200.0,0.00013788,2]
[325427845,1714869039735,-347.3,0.00013809,2]
[325427846,1714869039744,-347.3,0.00013845,2]
[325427847,1714869039753,-347.3,0.00013882,2]
[325427848,1714869039763,-347.3,0.00013918,2]
[325427849,1714869039774,-347.3,0.00013955,2]
[325427850,1714869039784,-347.3,0.00013991,2]
[325427851,1714869039794,-200.0,0.0001532,2]
[325427852,1714869039806,-272.3,0.000155,2]
[325427853,1714869039816,-200.0,0.00016852,2]
[325427854,1714869039825,-272.3,0.00017222,2]
[325427855,1714869039835,-169.85,0.00017492,2]
[325427856,1714869039844,-156.93,0.00017641,2]
[325427857,1714869039854,-330.45220199,0.0001788,2]
[325427858,1714869039864,-330.45220191,0.0001788,2]
[325427859,1714869039874,-256.55957814,0.0001788,2]
[325427861,1714869039884,-450.0,0.00018,3]
[325427862,1714869039894,-200.0,0.00018384,2]
[325427864,1714869039903,-272.3,0.00018944,2]
[325427866,1714869039921,-23377.98225501,0.00019,5]
[325427869,1714869039934,-3425.0,0.00019,2]
[325427871,1714869039944,-330.45220191,0.00019139,2]
[325427873,1714869039954,-342.55,0.000192,2]
[325427875,1714869039963,-650.0,0.000197,2]
[325427877,1714869039973,-151.71740717,0.000199,2]
[325427879,1714869039983,-151.71740717,0.000199,2]
[325427881,1714869039992,-151.71740717,0.000199,2]
[325427883,1714869040001,-500.0,0.0002,3]
[325427885,1714869040011,-155.0,0.00020598,2]
[325427887,1714869040020,-407.19761892,0.00020599,2]
[325427889,1714869040029,-228.8111743,0.00020599,2]
[325427891,1714869040039,-272.3,0.00020667,2]
[325427893,1714869040049,-155.0,0.000209,2]
[325427895,1714869040058,-165.35,0.00021644,2]
[325427897,1714869040068,-150.58,0.00021644,2]
[325427899,1714869040078,-160.4,0.00021644,2]
[325427901,1714869040088,-250.0,0.00021918,2]
[325427903,1714869040097,-2000.0,0.00021918,2]
[325427905,1714869040107,-156.93,0.00022051,2]
[325427907,1714869040116,-330.45220191,0.00022183,2]
[325427909,1714869040126,-171.13294088,0.00022265,2]
[325427911,1714869040136,-151.71740717,0.00022733,2]
[325427913,1714869040145,-2000.61208485,0.000234,2]
[325427915,1714869040155,-342.55,0.000234,2]
[325427917,1714869040165,-180.0,0.0002423,2]
[325427919,1714869040175,-888.0,0.00024657,2]
[325427921,1714869040185,-544.76,0.00024658,2]
[325427923,1714869040194,-815.92216718,0.00025,2]
[325427925,1714869040204,-456.66329758,0.00025,7]
[325427927,1714869040214,-9929.33587538,0.00025,2]
[325427929,1714869040224,-330.45220191,0.00025227,2]
[325427931,1714869040234,-151.71740717,0.00026011,2]
[325427933,1714869040243,-421.02,0.00026012,3]
[325427935,1714869040252,-888.0,0.00026027,4]
[325427936,1714869040261,-169.85,0.00026238,2]
[325427937,1714869040271,-156.93,0.00026461,120]
[325427938,1714869040280,-311.87,0.00027068,15]
[325427939,1714869040289,-842.04,0.00027382,3]
[325427940,1714869040298,-482.57,0.00027397,10]
[325427941,1714869040317,-165.35,0.00027714,2]
[325427942,1714869040329,-330.45220191,0.00028271,2]
[325427943,1714869040339,-500.0,0.00028999,2]
[325427944,1714869040349,-500.0,0.00028999,2]
[325427945,1714869040359,-500.0,0.00028999,2]
[325427946,1714869040370,-226.52980338,0.00028999,2]
[325427947,1714869040380,-500.0,0.00028999,2]
[325427948,1714869040390,-647.15395655,0.00028999,2]
[325427949,1714869040400,-151.71740717,0.00029289,2]
[325427950,1714869040410,-342.55,0.000293,2]
[325427951,1714869040421,-150.58,0.00029333,2]
[325427952,1714869040433,-5614.22005059,0.0002999,2]
[325427953,1714869040443,-150.24760955,0.0003,120]
[325427954,1714869040452,-9536.08267998,0.0003,2]
[325427955,1714869040462,-5677.45044794,0.0003,2]
[325427956,1714869040472,-311.87,0.00030804,15]
[325427957,1714869040482,-168522.56597027,0.00030818,2]
[325427958,1714869040492,-118887.5524171,0.00030818,2]
[325427959,1714869040502,-499.999999,0.00030818,2]
[325427960,1714869040512,-330.45220191,0.00031315,2]
[325427961,1714869040523,-171.13294088,0.0003163,3]
[325427962,1714869040533,-510.65556878,0.00031794,2]
[325427963,1714869040543,-1000.0,0.000325,4]
[325427964,1714869040552,-151.71740717,0.00032567,2]
[325427965,1714869040562,-165.35,0.00033785,2]
[325427966,1714869040575,-330.45220191,0.00034359,2]
[325427967,1714869040585,-342.55,0.000345,2]
[325427968,1714869040595,-311.87,0.0003454,15]
[325427969,1714869040605,-510.65556878,0.00035573,2]
[325427970,1714869040616,-151.71740717,0.00035844,2]
[325427971,1714869040627,-544.76,0.0003589,120]
[325427972,1714869040638,-342.55,0.000362,7]
[325427973,1714869040648,-2000.0,0.00036748,15]
[325427974,1714869040658,-2012.0,0.00037,60]
[325427975,1714869040667,-2000.0,0.00037,2]
[325427976,1714869040678,-250.0,0.00037,2]
[325427977,1714869040687,-601.0,0.00037,2]
[325427978,1714869040697,-150.58,0.00037023,2]
[325427979,1714869040707,-211.98313337,0.0003719,120]
[325427980,1714869040718,-330.45220191,0.00037403,2]
[325427981,1714869040728,-342.55,0.000376,7]
[325427982,1714869040738,-819.18174413,0.00038,7]
[325427983,1714869040748,-318.16081105,0.00038256,2]
[325427984,1714869040757,-197.85840028,0.00038256,2]
[325427985,1714869040767,-311.87,0.00038276,15]
[325427986,1714869040777,-158.26835467,0.00038329,7]
[325427987,1714869040786,-2411268.71618977,0.00038329,7]
[325427988,1714869041397,-312.16935958,0.00038329,7]
[325427989,1714869041500,-1019.80870862,0.00012181,2]
[325427990,1714869041513,-592.0932502,0.00012181,2]
[325427991,1714869041526,-625.35499999,0.00012181,2]
[325428013,1714869042202,-818.26167894,0.00012181,2]
[325428014,1714869042212,-467.24332106,0.00038329,7]
[325428015,1714869042351,-2159.77614834,0.00038329,7]
[325428016,1714869042363,-2377.98218144,0.00038329,7]
[325428017,1714869042375,-1576.9379362,0.00038329,7]
[325428018,1714869042400,-823.17260833,0.00038329,7]
[325428062,1714869043232,-17312.19472073,0.00038329,7]
[325428065,1714869043455,-1049.700003,0.00038329,7]
[325428066,1714869043468,-450.180002,0.00038329,7]
[325428067,1714869043480,-2567.68,0.00038329,7]
[325428073,1714869046096,-155.0,0.00017259,2]
[325428074,1714869046106,-435.82,0.00017259,2]
[325428075,1714869046199,-1089.33924794,0.00017259,2]
[325428076,1714869046209,-43413.35191148,0.00038329,7]
[325428077,1714869046221,-1362.98079444,0.00038329,7]
[325428078,1714869046234,-6380.14492705,0.00038329,7]
[325428079,1714869046246,-470650.724411,0.00038329,7]
[325428133,1714870232434,-1197.387015,0.00011839,2]
[325428135,1714870232444,-1977.36311643,0.00011899,2]
[325428137,1714870232453,-150.0,0.00011999,2]
[325428138,1714870232462,-15024.6151219,0.00012,2]
[325428139,1714870232471,-360.08324178,0.00017158,2]
[325428140,1714870232630,-3055.51863775,0.00017158,2]
[325428141,1714870232640,-300.0,0.00017159,2]
[325428142,1714870232650,-203.53236714,0.00017259,2]
[325428143,1714870232666,-14.47341742,0.00017259,2]
[325428144,1714870232676,-155.0,0.00017259,2]
[325428145,1714870232686,-162.14072084,0.00017259,2]
[325428146,1714870232695,-176.85784888,0.00017259,2]
[325428147,1714870232707,-1817.18062496,0.00017259,2]
[325428148,1714870232716,-499.99,0.0001726,2]
[325428149,1714870232726,-36.64989923,0.00019,5]
[325428150,1714870232742,-4125.0,0.00019,5]
[325428151,1714870232756,-2492.08908691,0.00019,5]
[325428152,1714870232816,-625.3983,0.00019,5]
[325428179,1714870238698,-2068.59902885,0.00017258,2]
[325428180,1714870238710,-986.9196089,0.00017258,2]
[325428181,1714870238719,-1015.1703867,0.00019,5]
[325428182,1714870238731,-2084.0327375,0.00019,5]
[325428183,1714870238743,-2007.98320904,0.00019,5]
[325428184,1714870238757,-2586.70432895,0.00019,5]
[325428185,1714870238769,-8404.95430668,0.00019,5]
[325428186,1714870238779,-3642.77,0.00019178,2]
[325428187,1714870238788,-3874.2010887,0.000192,2]
[325428188,1714870238798,-156.16,0.00021644,2]
[325428189,1714870238807,-456.66329758,0.00028428,7]
[325428190,1714870238817,-156.16,0.00028429,2]
[325428191,1714870238826,-1500.0,0.00030458,2]
[325428192,1714870238835,-500.0,0.00030473,2]
[325428193,1714870238845,-207.91,0.00030501,15]
[325428194,1714870238854,-2000.0,0.00030554,2]
[325428195,1714870238864,-285.92,0.00030621,2]
[325428196,1714870238873,-285.92,0.00030629,2]
[325428197,1714870238883,-285.92,0.00030637,2]
[325428198,1714870238892,-285.92,0.00030645,2]
[325428199,1714870238902,-285.92,0.00030653,2]
[325428200,1714870238911,-285.92,0.00030661,2]
[325428201,1714870238921,-285.92,0.00030669,2]
[325428202,1714870238931,-285.92,0.00030677,2]
[325428203,1714870238940,-285.92,0.00030685,2]
[325428204,1714870238950,-285.92,0.00030693,2]
[325428205,1714870238959,-285.92,0.00030701,2]
[325428206,1714870238969,-285.92,0.00030709,2]
[325428207,1714870238979,-285.92,0.00030717,2]
[325428208,1714870238988,-285.92,0.00030725,2]
[325428209,1714870238998,-285.92,0.00030733,2]
[325428210,1714870239008,-285.92,0.00030742,2]
[325428211,1714870239019,-285.92,0.0003075,2]
[325428212,1714870239030,-285.92,0.00030758,2]
[325428213,1714870239042,-285.92,0.00030766,2]
[325428214,1714870239052,-285.92,0.00030774,2]
[325428215,1714870239063,-250.0,0.00030795,2]
[325428216,1714870239072,-168.0,0.00031074,2]
[325428217,1714870239083,-272.38,0.00031203,120]
[325428218,1714870239094,-176.81,0.00031298,2]
[325428219,1714870239104,-163.16,0.00031554,120]
[325428220,1714870239113,-150.0,0.00031905,2]
[325428221,1714870239123,-3774.32480789,0.00031926,2]
[325428222,1714870239135,-3276.49999999,0.00031926,2]
[325428223,1714870239156,-349.50100397,0.00031926,2]
[325428224,1714870239170,-392.8525,0.00031926,2]
[325428225,1714870239182,-1023.22456633,0.00031926,2]
[325428226,1714870239217,-5208.92676619,0.00031926,2]
[325428227,1714870239228,-9874.67035563,0.00031926,2]
[325428228,1714870239237,-276.06265156,0.00032876,2]
[325428229,1714870239246,-180.0,0.00033482,2]
[325428230,1714870239256,-250.0,0.00033612,2]
[325428231,1714870239266,-207.91,0.00034237,15]
[325428232,1714870239275,-150.0,0.00034548,10]
[325428233,1714870239284,-168.0,0.00034958,2]
[325428234,1714870239298,-156.16,0.00035214,2]
[325428235,1714870239307,-233.99,0.00035427,120]
[325428236,1714870239316,-152.25,0.000362,7]
[325428237,1714870239326,-168.28,0.00036345,2]
[325428238,1714870239338,-200.02,0.0003644,2]
[325428239,1714870239349,-270.1122,0.00037141,2]
[325428240,1714870239360,-150.0,0.00037878,2]
[325428241,1714870239370,-3647.19944605,0.00037915,2]
[325428242,1714870239380,-207.91,0.00037973,15]
[325428243,1714870239391,-2443.89555753,0.00038136,2]
[325428244,1714870239400,-1754.1276,0.00038156,2]
[325428245,1714870239410,-761.84886299,0.00038156,2]
[325428246,1714870239421,-165.22610096,0.00038156,2]
[325428247,1714870239431,-144554.18568475,0.00038254,7]
[325428256,1714870241727,-13683.1460315,0.00038254,7]
[325428257,1714870241740,-2920.58028217,0.00038254,7]
[325428258,1714870241854,-4170.03465609,0.00038254,7]
[325428259,1714870241980,-1893.7,0.00038254,7]
[325428260,1714870241992,-3456.9,0.00038254,7]
[325428261,1714870242004,-455.07799912,0.00038254,7]
[325428262,1714870242016,-3896.92962932,0.00038254,7]
[325428263,1714870242108,-284.64976911,0.00038254,7]
[325428264,1714870242120,-1056.44375298,0.00038254,7]
[325428266,1714870242143,-39780.31888816,0.00038254,7]
[325428303,1714870243530,-1277.0,0.00037,2]
[325428304,1714870243540,-27269.64176029,0.00038254,7]
[325428310,1714870247356,-58327.84393,0.00038254,7]
[325428311,1714870247529,-264.08500946,0.00038254,7]
[325428312,1714870247557,-6769.7629538,0.00038254,7]
[325428330,1714870457460,320.25771054,0.0001,2]
[325428337,1714870579925,-360.08324178,0.00011999,2]
[325428338,1714870579959,-3055.51863775,0.00011999,2]
[325428339,1714870579985,-4084.39812047,0.00012,2]
[325428344,1714871432876,-3055.51863775,0.00011897,2]
[325428345,1714871432886,-1879.30754182,0.00011898,2]
[325428346,1714871432899,-4937.38464206,0.00011898,2]
[325428347,1714871432913,-2210.79419766,0.00011898,2]
[325428348,1714871432925,-941.44974914,0.00011898,2]
[325428353,1714871437717,-635.89799064,0.00011898,2]
[325428354,1714871437785,-7445.04905851,0.00011898,2]
[325428355,1714871437798,-1411.81166247,0.00011898,2]
[325428356,1714871437808,-2988.0,0.000119,2]
[325428357,1714871437820,-3368.32673753,0.00012,2]
[325428358,1714871437833,-5188.52618049,0.00012,2]
[325428359,1714871437844,-1000.0,0.00012,2]
[325428360,1714871437853,-169.7551901,0.000129,2]
[325428361,1714871437865,-173.44820364,0.000129,2]
[325428362,1714871437875,-614.56422577,0.000129,2]
[325428363,1714871437888,-1885.43577423,0.000129,2]
[325428364,1714871437898,-2500.0,0.000129,2]
[325428365,1714871437910,-2500.0,0.000129,2]
[325428366,1714871437921,-178.96827852,0.0001299,2]
[325428367,1714871437930,-448.07672856,0.00012998,2]
[325428368,1714871437939,-1000.0,0.00012999,2]
[325428369,1714871437949,-1317.77615422,0.00012999,2]
[325428370,1714871438234,-8431.39376625,0.00012999,2]
[325428371,1714871438262,-2998.59791663,0.00012999,2]
[325428372,1714871438273,-1132.00221219,0.00012999,2]
[325428373,1714871438283,-1483.42142931,0.00012999,2]
[325428374,1714871438292,-299.99,0.00012999,2]
[325428375,1714871438302,-583.57707249,0.00013,2]
[325428376,1714871438380,-783.40323573,0.00013,2]
[325428377,1714871438392,-603.45575644,0.00013,2]
[325428378,1714871438404,-910.60655848,0.00013,2]
[325428379,1714871438419,-672.57,0.00013,2]
[325428384,1714871439739,-1382.61525953,0.00013,2]
[325428385,1714871439807,-5691.89758864,0.00013,2]
[325428386,1714871439971,-592.6083425,0.00013,2]
[325428387,1714871440141,-269.98137613,0.00013,2]
[325428388,1714871440154,-1819.31219064,0.00013,2]
[325428389,1714871440165,-1043.75244566,0.00013,2]
[325428390,1714871440178,-1910.759,0.00013,2]
[325428391,1714871440190,-2920.58028217,0.00013,2]
[325428395,1714871443475,-4451.73859681,0.00013,2]
[325428396,1714871443501,-28455.43976184,0.00013,2]
[325428397,1714871443518,-942.66174752,0.00013,2]
[325428400,1714871443540,-133558.60823362,0.00013,2]
[325428402,1714871443625,-805.291941,0.00013,2]
[325428403,1714871443636,-655.95383764,0.00013,2]
[325428404,1714871443651,-2182991.24874625,0.00013,2]
[325428418,1714872632112,-155.0,0.00010392,2]
[325428420,1714872632122,-1432.52669612,0.00010393,2]
[325428427,1714872632305,-1622.99194163,0.00010393,2]
[325428428,1714872632315,-7393.21980475,0.00010394,2]
[325428429,1714872632325,-546.45604395,0.000104,2]
[325428430,1714872632335,-250.0,0.00012569,2]
[325428431,1714872632345,-150.0,0.00012635,2]
[325428432,1714872632355,-400.0,0.000127,4]
[325428433,1714872632364,-150.0,0.00012774,2]
[325428434,1714872632374,-899.2,0.00012792,2]
[325428435,1714872632389,-3064.87124597,0.00012799,2]
[325428436,1714872632399,-8944.8861,0.000128,2]
[325428437,1714872632409,-800.0,0.000128,4]
[325428438,1714872632418,-2194.6213,0.00012889,2]
[325428439,1714872632428,-150.99,0.000129,2]
[325428440,1714872632437,-150.99,0.000129,2]
[325428441,1714872632446,-499.99,0.000129,2]
[325428442,1714872632457,-169.7551901,0.000129,2]
[325428443,1714872632467,-1200.0,0.000129,4]
[325428444,1714872632476,-2116.93042155,0.000129,2]
[325428445,1714872632486,-702.03381683,0.00012987,2]
[325428446,1714872632495,-191.21766306,0.00012988,2]
[325428447,1714872632505,-161.02201907,0.00012988,5]
[325428449,1714872632515,-1018.88808547,0.00012989,2]
[325428451,1714872632524,-65725.6748476,0.00012989,2]
[325428453,1714872632533,-124424.4869133,0.00012989,2]
[325428455,1714872632543,-359.94935373,0.00012998,2]
[325428457,1714872632553,-186.95154128,0.00012999,2]
[325428459,1714872632562,-167.58233418,0.00012999,2]
[325428460,1714872632571,-276.22985248,0.00012999,2]
[325428461,1714872632581,-155.45060426,0.00012999,2]
[325428462,1714872632591,-155.0,0.00012999,2]
[325428463,1714872632601,-155.31169365,0.00012999,2]
[325428464,1714872632611,-409.3828276,0.00012999,2]
[325428465,1714872632620,-436.61177619,0.00012999,2]
[325428466,1714872632630,-1000.0,0.00012999,2]
[325428467,1714872632639,-257.56114496,0.00012999,2]
[325428468,1714872632649,-90866.41573773,0.00013,2]
[325428469,1714872632661,-1904.24,0.00013,2]
[325428470,1714872632716,-7057.21140862,0.00013,2]
[325428480,1714872638194,-285.60245922,0.00013,2]
[325428481,1714872638282,-2598.47316635,0.00013,2]
[325428482,1714872638294,-3094.90000003,0.00013,2]